Workbook

Sheet Sheet1
B1: Zaitox Station 67 | C1: Death Strike | D1: Relics of Minora's Temple | E1: SIWLJ | F1: Firefight | G1: Security Breach v2 | H1: Greater Legacy | I1: Undulation | J1: ILWI (CTF) | K1: Unconventional Coffee (CTF) | L1: Raw Score | M1: Weighted Score | N1: Event Points
A2: Toni | B2: 2 | C2: 2 | D2: 4 | E2: 2 | F2: 3 | G2: 2 | H2: 2 | I2: 2 | J2: 2.5 | K2: =3*1.2 -> 3.6 | L2: =SUM(B2:K2) -> 25.1 | M2: =(50/25.1)*L2 -> 50 | N2: 50 | O2: Toni
A3: ThunderWalker | B3: 2 | C3: 1 | D3: 4 | E3: 3 | F3: 3 | G3: 2 | H3: 2 | I3: 2 | J3: =2.5*1.1 -> 2.75 | K3: =3*1.1 -> 3.3 | L3: =SUM(B3:K3) -> 25.05 | M3: =(50/25.1)*L3 -> 49.90039841 | N3: 50 | O3: ThunderWalker
A4: Vegito | B4: 2 | C4: 2 | D4: 4 | E4: 2 | F4: 3 | G4: 2 | H4: 1 | I4: 2 | J4: =2.5*1.1 -> 2.75 | K4: =3*1.1 -> 3.3 | L4: =SUM(B4:K4) -> 24.05 | M4: 47.90836653 | N4: 48 | O4: Vegito
A5: Snooze | B5: 1 | C5: 1 | D5: 4 | E5: 2 | F5: 3 | G5: 2 | H5: 2 | I5: 4 | J5: 0.5 | K5: =3*1.1 -> 3.3 | L5: =SUM(B5:K5) -> 22.8 | M5: 45.41832669 | N5: 45 | O5: Snooze
A6: King | B6: 2 | C6: 1 | D6: 4 | E6: 2 | F6: 2 | G6: 1 | H6: 1 | I6: 4 | J6: 2.5 | K6: 3 | L6: =SUM(B6:K6) -> 22.5 | M6: 44.82071713 | N6: 45 | O6: King
A7: SuperJazz | B7: 2 | C7: 2 | D7: 4 | E7: 3 | F7: 3 | G7: 2 | H7: 1 | I7: 2 | J7: =2.5*1.1 -> 2.75 | K7: 0.5 | L7: =SUM(B7:K7) -> 22.25 | M7: 44.32270916 | N7: 44 | O7: SuperJazz
A8: Quickz | B8: 2 | C8: 2 | D8: 4 | E8: 3 | F8: 2 | G8: 2 | H8: 2 | I8: 4 | J8: 0.5 | K8: 0.5 | L8: =SUM(B8:K8) -> 22 | M8: 43.8247012 | N8: 44 | O8: Quickz
A9: Rewence | B9: 2 | C9: 1 | D9: 4 | E9: 2 | F9: 3 | G9: 1 | H9: 1 | I9: 2 | J9: =2.5*1.1 -> 2.75 | K9: 3 | L9: =SUM(B9:K9) -> 21.75 | M9: 43.32669323 | N9: 43 | O9: Rewence
A10: Spazix | B10: 2 | C10: 2 | D10: 4 | E10: 2 | F10: 3 | G10: 1 | H10: 2 | I10: 4 | J10: 0.5 | K10: 0.5 | L10: =SUM(B10:K10) -> 21 | M10: 41.83266932 | N10: 42 | O10: Spazix
A11: Dofus | B11: 0 | C11: 2 | D11: 1 | E11: 3 | F11: 2 | G11: 1 | H11: 2 | I11: 4 | J11: 2.5 | K11: 3 | L11: =SUM(B11:K11) -> 20.5 | M11: 40.83665339 | N11: 41 | O11: Dofus
A12: DarkSonic | B12: 1 | C12: 2 | D12: 1 | E12: 3 | F12: 3 | G12: 1 | H12: 1 | I12: 4 | J12: 0.5 | K12: 3 | L12: =SUM(B12:K12) -> 19.5 | M12: 38.84462151 | N12: 39 | O12: DarkSonic
A13: Violet CLM | B13: 1 | C13: 1 | D13: 1 | E13: 3 | F13: 2 | G13: 2 | H13: 2 | I13: 2 | J13: 2.5 | K13: 3 | L13: =SUM(B13:K13) -> 19.5 | M13: 38.84462151 | N13: 39 | O13: Violet CLM
A14: Plumbe | B14: 1 | C14: 2 | D14: 4 | E14: 3 | F14: 2 | G14: 2 | H14: 1 | I14: 4 | J14: 0 | K14: 0 | L14: =SUM(B14:K14) -> 19 | M14: 37.84860558 | N14: 37 | O14: Plumbe
A15: Foly | B15: 1 | C15: 1 | D15: 1 | E15: 2 | F15: 2 | G15: 2 | H15: 2 | I15: 4 | J15: 0.5 | K15: 3 | L15: =SUM(B15:K15) -> 18.5 | M15: 36.85258964 | N15: 37 | O15: Foly
A16: FireSworD | B16: 2 | C16: 2 | D16: 1 | E16: 3 | F16: 3 | G16: 1 | H16: 1 | I16: 4 | J16: 0 | K16: 0 | L16: =SUM(B16:K16) -> 17 | M16: 33.86454183 | N16: 34 | O16: FireSworD
A17: Rose | B17: 1 | C17: 2 | D17: 1 | E17: 2 | F17: 3 | G17: 2 | H17: 1 | I17: 2 | J17: 2.5 | K17: 0.5 | L17: =SUM(B17:K17) -> 17 | M17: 33.86454183 | N17: 34 | O17: Rose
A18: Treylina | B18: 2 | C18: 1 | D18: 1 | E18: 2 | F18: 2 | G18: 2 | H18: 2 | I18: 2 | J18: 2.5 | K18: 0.5 | L18: =SUM(B18:K18) -> 17 | M18: 33.86454183 | N18: 34 | O18: Treylina
A19: PurpleJazz | B19: 1 | C19: 2 | D19: 4 | E19: 2 | F19: 3 | G19: 1 | H19: 1 | I19: 2 | J19: 0.5 | K19: 0.5 | L19: =SUM(B19:K19) -> 17 | M19: 33.86454183 | N19: 34 | O19: PurpleJazz
A20: Sue | B20: 2 | C20: 1 | D20: 0 | E20: 3 | F20: 2 | G20: 1 | H20: 1 | I20: 4 | J20: 0.5 | K20: 0.5 | L20: =SUM(B20:K20) -> 15 | M20: 29.88047809 | N20: 30 | O20: Sue
A21: Owen | B21: 1 | C21: 2 | D21: 1 | E21: 2 | F21: 3 | G21: 1 | H21: 2 | I21: 2 | J21: 0.5 | K21: 0.5 | L21: =SUM(B21:K21) -> 15 | M21: 29.88047809 | N21: 30 | O21: Owen
A22: Moti | B22: 1 | C22: 1 | D22: 4 | E22: 3 | F22: 2 | G22: 0 | H22: 0 | I22: 0 | J22: 0 | K22: 0 | L22: =SUM(B22:K22) -> 11 | M22: 21.9123506 | N22: 22 | O22: Moti
A23: Grytolle | B23: 0 | C23: 0 | D23: 1 | E23: 0 | F23: 2 | G23: 2 | H23: 2 | I23: 4 | J23: 0 | K23: 0 | L23: =SUM(B23:K23) -> 11 | M23: 21.9123506 | N23: 22 | O23: Grytolle
A24: Slaz | B24: 0 | C24: 0 | D24: 0 | E24: 2 | F24: 2 | G24: 1 | H24: 1 | I24: 2 | J24: 0.5 | K24: 0.5 | L24: =SUM(B24:K24) -> 9 | M24: 17.92828685 | N24: 18 | O24: Slaz
A25: Lithium | B25: 0 | C25: 1 | D25: 1 | E25: 3 | F25: 0 | G25: 0 | H25: 0 | I25: 0 | J25: 0 | K25: 0 | L25: =SUM(B25:K25) -> 5 | M25: 9.960159363 | N25: 10 | O25: Lithium
A26: Blackeye | B26: 1 | C26: 1 | D26: 1 | E26: 0 | F26: 0 | G26: 0 | H26: 0 | I26: 0 | J26: 0 | K26: 0 | L26: =SUM(B26:K26) -> 3 | M26: 5.976095618 | N26: 6 | O26: Blackeye
A27: LOKKO | B27: 0 | C27: 0 | D27: 0 | E27: 0 | F27: 0 | G27: 0 | H27: 0 | I27: 2 | J27: 0.5 | K27: 0 | L27: =SUM(B27:K27) -> 2.5 | M27: 4.980079681 | N27: 5 | O27: LOKKO
A28: Lahm | B28: 0 | C28: 0 | D28: 0 | E28: 0 | F28: 0 | G28: 0 | H28: 0 | I28: 0 | J28: 2.5 | K28: 0 | L28: =SUM(B28:K28) -> 2.5 | M28: 4.980079681 | N28: 5 | O28: Lahm
A29: Krytical | B29: 2 | C29: 0 | D29: 0 | E29: 0 | F29: 0 | G29: 0 | H29: 0 | I29: 0 | J29: 0 | K29: 0 | L29: =SUM(B29:K29) -> 2 | M29: 3.984063745 | N29: 4 | O29: Krytical
A30: Kiiyuka | B30: 0 | C30: 1 | D30: 1 | E30: 0 | F30: 0 | G30: 0 | H30: 0 | I30: 0 | J30: 0 | K30: 0 | L30: =SUM(B30:K30) -> 2 | M30: 3.984063745 | N30: 4 | O30: Kiiyuka
A31: cooba | B31: 1 | C31: 0 | D31: 0 | E31: 0 | F31: 0 | G31: 0 | H31: 0 | I31: 0 | J31: 0 | K31: 0 | L31: =SUM(B31:K31) -> 1 | M31: 1.992031873 | N31: 2 | O31: cooba
